[Event "*** Titled Tuesday Blitz"]
[Site "Chess.com"]
[Date "2021.03.09"]
[Round "5"]
[White "HanSchut"]
[Black "TeukkaSalama"]
[Result "1/2-1/2"]
[WhiteElo "2217"]
[BlackElo "2365"]
[TimeControl "180+1"]
[EndTime "10:59:29 PST"]
[Termination "Game drawn by repetition"]

1. e4 {[%clk 0:03:00.9]} 1... e6 {[%clk 0:03:00.2]} 2. d4 {[%clk 0:03:00.8]}
2... d5 {[%clk 0:03:00.7]} 3. Nd2 {[%clk 0:03:01.1]} 3... c5 {[%clk 0:03:00.5]}
4. exd5 {[%clk 0:02:59.7]} 4... Qxd5 {[%clk 0:02:50.6]} 5. Ngf3 {[%clk
0:02:59.9]} 5... cxd4 {[%clk 0:02:50.6]} 6. Bc4 {[%clk 0:02:59.9]} 6... Qd6
{[%clk 0:02:50.7]} 7. O-O {[%clk 0:03:00.5]} 7... Nf6 {[%clk 0:02:50.8]} 8. Nb3
{[%clk 0:03:00.9]} 8... Nc6 {[%clk 0:02:51.3]} 9. Nfxd4 {[%clk 0:02:59.7]} 9...
Nxd4 {[%clk 0:02:52.2]} 10. Qxd4 {[%clk 0:02:59.7]} 10... Qxd4 {[%clk
0:02:51.9]} 11. Nxd4 {[%clk 0:03:00.6]} 11... Bd7 {[%clk 0:02:52.2]} 12. c3
{[%clk 0:02:47.1]} 12... O-O-O {[%clk 0:02:46.1]} 13. h3 {[%clk 0:02:34.4]}
13... a6 {[%clk 0:02:43.2]} 14. a4 {[%clk 0:02:27.9]} 14... Bd6 {[%clk
0:02:34.7]} 15. Rd1 {[%clk 0:02:16.3]} 15... Bc7 {[%clk 0:02:27.7]} 16. a5
{[%clk 0:02:08.6]} 16... Ne4 {[%clk 0:02:15.4]} 17. Be3 {[%clk 0:01:55]} 17...
e5 {[%clk 0:02:07.9]} 18. Nb3 {[%clk 0:01:24.3]} 18... f5 {[%clk 0:02:01.1]} 19.
f3 {[%clk 0:01:18.6]} 19... Nd6 {[%clk 0:01:56.4]} 20. Be2 {[%clk 0:01:14.5]}
20... f4 {[%clk 0:01:50.6]} 21. Bf2 {[%clk 0:01:14.4]} 21... Bc6 {[%clk
0:01:40]} 22. Nc5 {[%clk 0:01:11.6]} 22... Rhe8 {[%clk 0:01:24.5]} 23. Bd3
{[%clk 0:01:07.3]} 23... g6 {[%clk 0:01:22.8]} 24. Re1 {[%clk 0:01:06.3]} 24...
e4 {[%clk 0:01:12.9]} 25. fxe4 {[%clk 0:01:02.1]} 25... Nf7 {[%clk 0:00:57.4]}
26. Bc4 {[%clk 0:00:27.5]} 26... Ne5 {[%clk 0:00:53.3]} 27. Bd5 {[%clk
0:00:27.7]} 27... Bxd5 {[%clk 0:00:39.9]} 28. exd5 {[%clk 0:00:28.6]} 28... Rxd5
{[%clk 0:00:40]} 29. Bd4 {[%clk 0:00:24.6]} 29... Rdd8 {[%clk 0:00:35.3]} 30.
Kf1 {[%clk 0:00:17.1]} 30... Nc4 {[%clk 0:00:32.9]} 31. Rxe8 {[%clk 0:00:15.4]}
31... Rxe8 {[%clk 0:00:33.8]} 32. b4 {[%clk 0:00:15.4]} 32... Ne3+ {[%clk
0:00:29]} 33. Kg1 {[%clk 0:00:14.6]} 33... Nc2 {[%clk 0:00:27.4]} 34. Rd1 {[%clk
0:00:14.7]} 34... Re1+ {[%clk 0:00:25.3]} 35. Rxe1 {[%clk 0:00:14.7]} 35... Nxe1
{[%clk 0:00:26.2]} 36. Ne6 {[%clk 0:00:12.7]} 36... Bd6 {[%clk 0:00:23.5]} 37.
Bc5 {[%clk 0:00:10.7]} 37... Kd7 {[%clk 0:00:20.9]} 38. Bxd6 {[%clk 0:00:10.1]}
38... Kxd6 {[%clk 0:00:21.8]} 39. Nf8 {[%clk 0:00:10.2]} 39... Kd5 {[%clk
0:00:15]} 40. Nxh7 {[%clk 0:00:09.5]} 40... Kc4 {[%clk 0:00:15.5]} 41. Nf8
{[%clk 0:00:10.1]} 41... g5 {[%clk 0:00:15.7]} 42. Ne6 {[%clk 0:00:10]} 42...
Kxc3 {[%clk 0:00:14.9]} 43. Nxg5 {[%clk 0:00:10.4]} 43... Kxb4 {[%clk 0:00:14]}
44. h4 {[%clk 0:00:11]} 44... Nd3 {[%clk 0:00:10.5]} 45. Nf7 {[%clk 0:00:09.8]}
45... f3 {[%clk 0:00:09.4]} 46. g3 {[%clk 0:00:10.3]} 46... f2+ {[%clk
0:00:08.7]} 47. Kf1 {[%clk 0:00:10.5]} 47... Kxa5 {[%clk 0:00:09.6]} 48. h5
{[%clk 0:00:10.8]} 48... b5 {[%clk 0:00:10]} 49. h6 {[%clk 0:00:11.3]} 49... b4
{[%clk 0:00:10.6]} 50. h7 {[%clk 0:00:12]} 50... b3 {[%clk 0:00:10.7]} 51. h8=Q
{[%clk 0:00:12.6]} 51... b2 {[%clk 0:00:11.1]} 52. Qxb2 {[%clk 0:00:12.7]} 52...
Nxb2 {[%clk 0:00:10.9]} 53. g4 {[%clk 0:00:13.3]} 53... Nd3 {[%clk 0:00:10.3]}
54. g5 {[%clk 0:00:13.9]} 54... Nf4 {[%clk 0:00:10.6]} 55. Kxf2 {[%clk
0:00:13.5]} 55... Kb4 {[%clk 0:00:11.2]} 56. Kf3 {[%clk 0:00:14]} 56... Ng6
{[%clk 0:00:10.9]} 57. Ke4 {[%clk 0:00:14.3]} 57... a5 {[%clk 0:00:11.2]} 58.
Kf5 {[%clk 0:00:14.8]} 58... Nh4+ {[%clk 0:00:11.6]} 59. Kg4 {[%clk 0:00:15]}
59... Ng6 {[%clk 0:00:11.9]} 60. Kf5 {[%clk 0:00:14.9]} 60... Nh4+ {[%clk
0:00:12.2]} 61. Kg4 {[%clk 0:00:15.6]} 61... Ng6 {[%clk 0:00:12.6]} 62. Kf5
{[%clk 0:00:16.1]} 1/2-1/2

[Event "*** Titled Tuesday Blitz"]
[Site "Chess.com"]
[Date "2021.03.09"]
[Round "5"]
[White "eldur16"]
[Black "Blitzstream"]
[Result "0-1"]
[WhiteElo "2568"]
[BlackElo "2754"]
[TimeControl "180+1"]
[EndTime "10:59:32 PST"]
[Termination "Blitzstream won by checkmate"]

1. Nf3 {[%clk 0:03:00.9]} 1... d5 {[%clk 0:02:59.1]} 2. g3 {[%clk 0:03:00.9]}
2... Nf6 {[%clk 0:02:59.3]} 3. Bg2 {[%clk 0:03:01.7]} 3... c6 {[%clk 0:02:59.8]}
4. O-O {[%clk 0:03:01.4]} 4... Bf5 {[%clk 0:03:00.1]} 5. d3 {[%clk 0:03:01.3]}
5... e6 {[%clk 0:03:00.4]} 6. Nbd2 {[%clk 0:03:00]} 6... Be7 {[%clk 0:02:59.3]}
7. b3 {[%clk 0:02:58.8]} 7... O-O {[%clk 0:02:58.8]} 8. Bb2 {[%clk 0:02:58.8]}
8... Nbd7 {[%clk 0:02:58.2]} 9. c4 {[%clk 0:02:56.8]} 9... Bg6 {[%clk
0:02:57.1]} 10. Re1 {[%clk 0:02:53.9]} 10... a5 {[%clk 0:02:56.3]} 11. a3 {[%clk
0:02:53.2]} 11... Qb6 {[%clk 0:02:54.9]} 12. Qc2 {[%clk 0:02:52.3]} 12... Bc5
{[%clk 0:02:51.6]} 13. e3 {[%clk 0:02:46.9]} 13... Rfd8 {[%clk 0:02:47.8]} 14.
Nh4 {[%clk 0:02:38.8]} 14... Bh5 {[%clk 0:02:37.7]} 15. Ndf3 {[%clk 0:02:35.9]}
15... Bf8 {[%clk 0:02:32.4]} 16. Ne5 {[%clk 0:02:28.6]} 16... Nxe5 {[%clk
0:02:25.3]} 17. Bxe5 {[%clk 0:02:28]} 17... Nd7 {[%clk 0:02:25.6]} 18. Bc3
{[%clk 0:02:24.8]} 18... Be7 {[%clk 0:02:20.6]} 19. Nf3 {[%clk 0:02:11.8]} 19...
Bg6 {[%clk 0:02:18.4]} 20. e4 {[%clk 0:01:52.6]} 20... dxe4 {[%clk 0:02:01.2]}
21. dxe4 {[%clk 0:01:52.2]} 21... Nc5 {[%clk 0:02:01.3]} 22. Rab1 {[%clk
0:01:00.4]} 22... a4 {[%clk 0:01:12.8]} 23. b4 {[%clk 0:00:56.8]} 23... Nb3
{[%clk 0:01:12.4]} 24. c5 {[%clk 0:00:49.4]} 24... Qc7 {[%clk 0:01:10.8]} 25.
Rbd1 {[%clk 0:00:42.8]} 25... Rxd1 {[%clk 0:01:10.1]} 26. Rxd1 {[%clk
0:00:42.6]} 26... Rd8 {[%clk 0:01:11]} 27. Ne5 {[%clk 0:00:42]} 27... Bf6 {[%clk
0:01:06]} 28. f4 {[%clk 0:00:40.2]} 28... Bh5 {[%clk 0:00:42.9]} 29. g4 {[%clk
0:00:28.2]} 29... Bxe5 {[%clk 0:00:42.7]} 30. Bxe5 {[%clk 0:00:23.9]} 30... Bxg4
{[%clk 0:00:42.4]} 31. Rd6 {[%clk 0:00:19.3]} 31... Rxd6 {[%clk 0:00:34.1]} 32.
Bxd6 {[%clk 0:00:19.5]} 32... Qd7 {[%clk 0:00:30.8]} 33. e5 {[%clk 0:00:19.1]}
33... Bf5 {[%clk 0:00:24.9]} 34. Be4 {[%clk 0:00:18.5]} 34... Bxe4 {[%clk
0:00:22.9]} 35. Qxe4 {[%clk 0:00:18.2]} 35... Qd8 {[%clk 0:00:21.2]} 36. Qe1
{[%clk 0:00:16.9]} 36... Nd4 {[%clk 0:00:19]} 37. Qf2 {[%clk 0:00:17]} 37... Nb5
{[%clk 0:00:17.5]} 38. Kg2 {[%clk 0:00:15.8]} 38... Nxa3 {[%clk 0:00:17.2]} 39.
Qa2 {[%clk 0:00:15.4]} 39... Nb5 {[%clk 0:00:17]} 40. Qxa4 {[%clk 0:00:15.7]}
40... h6 {[%clk 0:00:17.6]} 41. Kg3 {[%clk 0:00:15]} 41... Nd4 {[%clk
0:00:17.1]} 42. Qd1 {[%clk 0:00:13.7]} 42... Nf5+ {[%clk 0:00:16.9]} 43. Kf3
{[%clk 0:00:10.5]} 43... Qh4 {[%clk 0:00:16.6]} 44. Qd2 {[%clk 0:00:10.4]} 44...
Qh3+ {[%clk 0:00:13.1]} 45. Ke4 {[%clk 0:00:10.6]} 45... Qb3 {[%clk 0:00:12.6]}
46. Bc7 {[%clk 0:00:09.8]} 46... Kh7 {[%clk 0:00:12.1]} 47. Bd6 {[%clk 0:00:09]}
47... h5 {[%clk 0:00:12.3]} 48. Bc7 {[%clk 0:00:08.8]} 48... h4 {[%clk
0:00:12.4]} 49. Bd6 {[%clk 0:00:08.8]} 49... Qb1+ {[%clk 0:00:12.6]} 50. Kf3
{[%clk 0:00:08.4]} 50... Qh1+ {[%clk 0:00:12.5]} 51. Kg4 {[%clk 0:00:08.1]}
51... Qg1+ {[%clk 0:00:09.4]} 52. Kh3 {[%clk 0:00:07.7]} 52... Qf1+ {[%clk
0:00:09.6]} 53. Kg4 {[%clk 0:00:07.3]} 53... h3 {[%clk 0:00:09.6]} 54. Qc3
{[%clk 0:00:06.5]} 54... Qg2+ {[%clk 0:00:09.2]} 55. Kh5 {[%clk 0:00:06.6]}
55... g6# {[%clk 0:00:09.3]} 0-1

[Event "*** Titled Tuesday Blitz"]
[Site "Chess.com"]
[Date "2021.03.09"]
[Round "5"]
[White "NikolaGry"]
[Black "mapleaff"]
[Result "1-0"]
[WhiteElo "2669"]
[BlackElo "2412"]
[TimeControl "180+1"]
[EndTime "10:59:33 PST"]
[Termination "NikolaGry won by checkmate"]

1. b3 {[%clk 0:03:00.4]} 1... Nc6 {[%clk 0:02:59.1]} 2. c4 {[%clk 0:02:58.6]}
2... e5 {[%clk 0:02:58.6]} 3. Bb2 {[%clk 0:02:57]} 3... f5 {[%clk 0:02:58]} 4.
e3 {[%clk 0:02:54.9]} 4... Nf6 {[%clk 0:02:57.3]} 5. Nf3 {[%clk 0:02:54.5]} 5...
d6 {[%clk 0:02:56.7]} 6. d4 {[%clk 0:02:54.7]} 6... e4 {[%clk 0:02:50.9]} 7. d5
{[%clk 0:02:45.6]} 7... exf3 {[%clk 0:02:24.3]} 8. dxc6 {[%clk 0:02:44.7]} 8...
fxg2 {[%clk 0:02:22.9]} 9. Bxg2 {[%clk 0:02:44]} 9... bxc6 {[%clk 0:02:22.1]}
10. Bxc6+ {[%clk 0:02:19]} 10... Bd7 {[%clk 0:02:21.8]} 11. Qf3 {[%clk
0:02:12.3]} 11... Rb8 {[%clk 0:02:04.6]} 12. Nc3 {[%clk 0:02:03.8]} 12... Bxc6
{[%clk 0:01:56.5]} 13. Qxc6+ {[%clk 0:02:02.4]} 13... Qd7 {[%clk 0:01:57.1]} 14.
Qf3 {[%clk 0:02:00.9]} 14... Be7 {[%clk 0:01:53.1]} 15. Rg1 {[%clk 0:01:50]}
15... O-O {[%clk 0:01:34.6]} 16. Nd5 {[%clk 0:01:33.9]} 16... Rf7 {[%clk
0:01:23.3]} 17. O-O-O {[%clk 0:01:24.4]} 17... Ne4 {[%clk 0:00:46]} 18. Rg2
{[%clk 0:01:01.4]} 18... Bf8 {[%clk 0:00:42.1]} 19. h4 {[%clk 0:00:54.1]} 19...
c6 {[%clk 0:00:40.2]} 20. Nf4 {[%clk 0:00:47.6]} 20... a5 {[%clk 0:00:29.8]} 21.
Rdg1 {[%clk 0:00:36.2]} 21... a4 {[%clk 0:00:26.5]} 22. Nh5 {[%clk 0:00:34.5]}
22... g6 {[%clk 0:00:09.3]} 23. Nf4 {[%clk 0:00:33.1]} 23... Bg7 {[%clk
0:00:06.1]} 24. Nxg6 {[%clk 0:00:28.7]} 24... Bxb2+ {[%clk 0:00:06.1]} 25. Kxb2
{[%clk 0:00:27.9]} 25... a3+ {[%clk 0:00:05.4]} 26. Kc2 {[%clk 0:00:23.9]} 26...
hxg6 {[%clk 0:00:04.7]} 27. Rxg6+ {[%clk 0:00:23.4]} 27... Kf8 {[%clk
0:00:03.9]} 28. Rg8+ {[%clk 0:00:21]} 28... Ke7 {[%clk 0:00:04.3]} 29. Rxb8
{[%clk 0:00:20.3]} 29... Qe6 {[%clk 0:00:04.9]} 30. Rb7+ {[%clk 0:00:16.8]}
30... Kf8 {[%clk 0:00:05.2]} 31. Qh5 {[%clk 0:00:10.4]} 31... Rxb7 {[%clk
0:00:03.7]} 32. Qh8+ {[%clk 0:00:10.2]} 32... Ke7 {[%clk 0:00:04.2]} 33. Rg7+
{[%clk 0:00:09.2]} 33... Kf6 {[%clk 0:00:04.6]} 34. Rxb7+ {[%clk 0:00:08.4]}
34... Kg6 {[%clk 0:00:03.7]} 35. Rg7+ {[%clk 0:00:07.3]} 35... Kf6 {[%clk
0:00:03.9]} 36. Qh6+ {[%clk 0:00:07.3]} 36... Ke5 {[%clk 0:00:03.8]} 37. Qxe6+
{[%clk 0:00:07]} 37... Kxe6 {[%clk 0:00:04.7]} 38. h5 {[%clk 0:00:07]} 38...
Nxf2 {[%clk 0:00:05.1]} 39. h6 {[%clk 0:00:06.4]} 39... Kf6 {[%clk 0:00:06]} 40.
Rg2 {[%clk 0:00:05.9]} 40... Ng4 {[%clk 0:00:06.4]} 41. Kd3 {[%clk 0:00:02.7]}
41... Kg6 {[%clk 0:00:06.2]} 42. b4 {[%clk 0:00:02.5]} 42... Kxh6 {[%clk
0:00:06.4]} 43. b5 {[%clk 0:00:02.4]} 43... cxb5 {[%clk 0:00:07.3]} 44. c5
{[%clk 0:00:02.6]} 44... Ne5+ {[%clk 0:00:08.2]} 45. Kd4 {[%clk 0:00:02.8]}
45... dxc5+ {[%clk 0:00:09]} 46. Kxe5 {[%clk 0:00:03]} 46... b4 {[%clk
0:00:09.9]} 47. Kxf5 {[%clk 0:00:03.3]} 47... b3 {[%clk 0:00:10.5]} 48. Kf6
{[%clk 0:00:03.4]} 48... b2 {[%clk 0:00:10.3]} 49. Rh2# {[%clk 0:00:02.7]} 1-0

[Event "*** Titled Tuesday Blitz"]
[Site "Chess.com"]
[Date "2021.03.09"]
[Round "5"]
[White "Lagmantr"]
[Black "Mazanchenko_Dmitry"]
[Result "1-0"]
[WhiteElo "2716"]
[BlackElo "2151"]
[TimeControl "180+1"]
[EndTime "10:59:34 PST"]
[Termination "Lagmantr won by checkmate"]

1. e4 {[%clk 0:03:00.1]} 1... c5 {[%clk 0:02:56.7]} 2. Nf3 {[%clk 0:03:00.7]}
2... d6 {[%clk 0:02:56.2]} 3. d4 {[%clk 0:03:01.4]} 3... Nf6 {[%clk 0:02:55.7]}
4. dxc5 {[%clk 0:02:59.5]} 4... Nxe4 {[%clk 0:02:55.6]} 5. cxd6 {[%clk
0:03:00.4]} 5... Nc6 {[%clk 0:02:55.8]} 6. Be3 {[%clk 0:02:56.5]} 6... Qxd6
{[%clk 0:02:49.5]} 7. Qxd6 {[%clk 0:02:55.9]} 7... Nxd6 {[%clk 0:02:50.4]} 8.
Nc3 {[%clk 0:02:55.4]} 8... Bg4 {[%clk 0:02:37.5]} 9. O-O-O {[%clk 0:02:53.5]}
9... Bxf3 {[%clk 0:02:34]} 10. gxf3 {[%clk 0:02:54.4]} 10... e6 {[%clk
0:02:25.5]} 11. Rg1 {[%clk 0:02:45.7]} 11... g6 {[%clk 0:02:23.7]} 12. Bf4
{[%clk 0:02:42.1]} 12... O-O-O {[%clk 0:02:22.9]} 13. Bh3 {[%clk 0:02:32.2]}
13... a6 {[%clk 0:02:09.9]} 14. Ne4 {[%clk 0:02:31.4]} 14... Nxe4 {[%clk
0:02:08.7]} 15. fxe4 {[%clk 0:02:32.3]} 15... Bc5 {[%clk 0:02:03.4]} 16. Rdf1
{[%clk 0:02:27.9]} 16... Nd4 {[%clk 0:01:57.4]} 17. Bg4 {[%clk 0:02:28.1]} 17...
f5 {[%clk 0:01:54.1]} 18. exf5 {[%clk 0:02:24.5]} 18... exf5 {[%clk 0:01:54.7]}
19. Bd1 {[%clk 0:02:24.9]} 19... Rhe8 {[%clk 0:01:48.3]} 20. Be3 {[%clk
0:02:23.3]} 20... Ne6 {[%clk 0:01:38.5]} 21. Bxc5 {[%clk 0:02:20.3]} 21... Nxc5
{[%clk 0:01:39.4]} 22. h4 {[%clk 0:02:19.9]} 22... Rg8 {[%clk 0:01:27.6]} 23. f4
{[%clk 0:02:17.3]} 23... Ne6 {[%clk 0:01:23.9]} 24. c3 {[%clk 0:02:14.5]} 24...
Nc5 {[%clk 0:01:14.2]} 25. Bc2 {[%clk 0:02:10]} 25... Ne4 {[%clk 0:00:54.4]} 26.
Bxe4 {[%clk 0:01:50.4]} 26... fxe4 {[%clk 0:00:55.3]} 27. Rg5 {[%clk 0:01:50.9]}
27... Rdf8 {[%clk 0:00:45.8]} 28. Re5 {[%clk 0:01:49.1]} 28... Re8 {[%clk
0:00:45.3]} 29. Re1 {[%clk 0:01:49.3]} 29... Rxe5 {[%clk 0:00:40]} 30. fxe5
{[%clk 0:01:50.2]} 30... Kd7 {[%clk 0:00:40.4]} 31. Rxe4 {[%clk 0:01:50.5]}
31... Ke6 {[%clk 0:00:40.8]} 32. Kd2 {[%clk 0:01:50]} 32... Rf8 {[%clk
0:00:37.3]} 33. Ke2 {[%clk 0:01:47.5]} 33... Rf5 {[%clk 0:00:37.1]} 34. Rb4
{[%clk 0:01:35.1]} 34... b5 {[%clk 0:00:35.1]} 35. a4 {[%clk 0:01:34.1]} 35...
Rxe5+ {[%clk 0:00:34.5]} 36. Kf3 {[%clk 0:01:34.7]} 36... Kf5 {[%clk 0:00:17.8]}
37. Rf4+ {[%clk 0:01:34]} 37... Ke6 {[%clk 0:00:17.3]} 38. Kg4 {[%clk
0:01:33.4]} 38... h5+ {[%clk 0:00:15.3]} 39. Kf3 {[%clk 0:01:32.2]} 39... Kd5
{[%clk 0:00:15.2]} 40. Rf6 {[%clk 0:01:30.6]} 40... Rf5+ {[%clk 0:00:14.9]} 41.
Rxf5+ {[%clk 0:01:30.3]} 41... gxf5 {[%clk 0:00:15.8]} 42. b3 {[%clk 0:00:23.4]}
42... bxa4 {[%clk 0:00:14.6]} 43. bxa4 {[%clk 0:00:23.7]} 43... Kc4 {[%clk
0:00:15.2]} 44. Kf4 {[%clk 0:00:24.1]} 44... Kxc3 {[%clk 0:00:15.7]} 45. Kg5
{[%clk 0:00:24.5]} 45... Kb4 {[%clk 0:00:16.4]} 46. Kxh5 {[%clk 0:00:24.7]}
46... Kxa4 {[%clk 0:00:17]} 47. Kg5 {[%clk 0:00:23.4]} 47... Kb3 {[%clk
0:00:16.5]} 48. h5 {[%clk 0:00:23.9]} 48... a5 {[%clk 0:00:16.9]} 49. h6 {[%clk
0:00:24.5]} 49... a4 {[%clk 0:00:17.8]} 50. h7 {[%clk 0:00:25]} 50... a3 {[%clk
0:00:18.7]} 51. h8=Q {[%clk 0:00:25.5]} 51... Ka2 {[%clk 0:00:17.7]} 52. Kxf5
{[%clk 0:00:25.2]} 52... Kb1 {[%clk 0:00:17.1]} 53. Qh1+ {[%clk 0:00:25.2]}
53... Kb2 {[%clk 0:00:16.9]} 54. Qg2+ {[%clk 0:00:25.5]} 54... Kb1 {[%clk
0:00:17.2]} 55. Qf1+ {[%clk 0:00:26.1]} 55... Kb2 {[%clk 0:00:17.5]} 56. Qb5+
{[%clk 0:00:26]} 56... Ka1 {[%clk 0:00:15.3]} 57. Qf1+ {[%clk 0:00:22.2]} 57...
Kb2 {[%clk 0:00:14.7]} 58. Qe2+ {[%clk 0:00:22.8]} 58... Ka1 {[%clk 0:00:14.5]}
59. Qc2 {[%clk 0:00:18.7]} 59... a2 {[%clk 0:00:14.4]} 60. Qc1# {[%clk
0:00:19.4]} 1-0

[Event "*** Titled Tuesday Blitz"]
[Site "Chess.com"]
[Date "2021.03.09"]
[Round "5"]
[White "nrvisakh"]
[Black "MoonlighT89"]
[Result "0-1"]
[WhiteElo "2760"]
[BlackElo "2618"]
[TimeControl "180+1"]
[EndTime "10:59:36 PST"]
[Termination "MoonlighT89 won on time"]

1. e4 {[%clk 0:03:00.9]} 1... c5 {[%clk 0:02:59.7]} 2. Nf3 {[%clk 0:02:59.5]}
2... e6 {[%clk 0:02:58.5]} 3. d4 {[%clk 0:02:58.6]} 3... cxd4 {[%clk 0:02:59.4]}
4. Nxd4 {[%clk 0:02:58.8]} 4... Nc6 {[%clk 0:03:00.3]} 5. Nxc6 {[%clk
0:02:55.7]} 5... bxc6 {[%clk 0:03:01.2]} 6. Bd3 {[%clk 0:02:53.5]} 6... d5
{[%clk 0:03:00.8]} 7. O-O {[%clk 0:02:53.1]} 7... Nf6 {[%clk 0:03:01]} 8. Qe2
{[%clk 0:02:52.4]} 8... Be7 {[%clk 0:03:00.7]} 9. Nd2 {[%clk 0:02:51.5]} 9...
O-O {[%clk 0:03:00.8]} 10. b3 {[%clk 0:02:49.9]} 10... Nd7 {[%clk 0:02:51.8]}
11. Bb2 {[%clk 0:02:48.5]} 11... Nc5 {[%clk 0:02:47.3]} 12. Rad1 {[%clk
0:02:47.9]} 12... Nxd3 {[%clk 0:02:46.8]} 13. Qxd3 {[%clk 0:02:46]} 13... a5
{[%clk 0:02:44]} 14. Rfe1 {[%clk 0:02:45.7]} 14... Qc7 {[%clk 0:02:35.7]} 15. c4
{[%clk 0:02:44.5]} 15... Ba6 {[%clk 0:02:17.6]} 16. exd5 {[%clk 0:01:51.8]}
16... cxd5 {[%clk 0:02:17]} 17. Qh3 {[%clk 0:01:51.1]} 17... dxc4 {[%clk
0:02:00.7]} 18. Nxc4 {[%clk 0:01:46.5]} 18... Rad8 {[%clk 0:01:49]} 19. Rc1
{[%clk 0:01:40.4]} 19... Bb4 {[%clk 0:01:21.8]} 20. Re4 {[%clk 0:01:12.8]} 20...
Qe7 {[%clk 0:01:05.9]} 21. Rh4 {[%clk 0:01:02.3]} 21... Qg5 {[%clk 0:00:55.6]}
22. Rf1 {[%clk 0:00:48.9]} 22... Qf5 {[%clk 0:00:54.3]} 23. Rg4 {[%clk
0:00:43.9]} 23... f6 {[%clk 0:00:40.6]} 24. Ne3 {[%clk 0:00:34.4]} 24... Qd3
{[%clk 0:00:29.1]} 25. Nc4 {[%clk 0:00:29.6]} 25... Qf5 {[%clk 0:00:21.5]} 26.
Bc1 {[%clk 0:00:20.5]} 26... h5 {[%clk 0:00:18.8]} 27. Rg3 {[%clk 0:00:16.6]}
27... Qxh3 {[%clk 0:00:16.9]} 28. Rxh3 {[%clk 0:00:17.5]} 28... g6 {[%clk
0:00:16.2]} 29. Rg3 {[%clk 0:00:12.3]} 29... Kf7 {[%clk 0:00:15.8]} 30. Be3
{[%clk 0:00:11.8]} 30... Bxc4 {[%clk 0:00:12]} 31. bxc4 {[%clk 0:00:11.4]} 31...
Rc8 {[%clk 0:00:12.9]} 32. Rc1 {[%clk 0:00:10.7]} 32... Rfd8 {[%clk 0:00:13.4]}
33. Kf1 {[%clk 0:00:10.9]} 33... Rd3 {[%clk 0:00:11.1]} 34. Bb6 {[%clk 0:00:09]}
34... Rxg3 {[%clk 0:00:05.9]} 35. hxg3 {[%clk 0:00:08.6]} 35... e5 {[%clk
0:00:05.8]} 36. Ke2 {[%clk 0:00:08.1]} 36... Ke6 {[%clk 0:00:06.7]} 37. c5
{[%clk 0:00:08.1]} 37... Kd5 {[%clk 0:00:05.4]} 38. Rd1+ {[%clk 0:00:08.5]}
38... Kc4 {[%clk 0:00:04.6]} 39. Rd6 {[%clk 0:00:08.1]} 39... Bxc5 {[%clk
0:00:02.5]} 40. Rxf6 {[%clk 0:00:08.5]} 40... Bxb6 {[%clk 0:00:02.1]} 41. Rxb6
{[%clk 0:00:09.4]} 41... a4 {[%clk 0:00:02.3]} 42. Rxg6 {[%clk 0:00:09.1]} 42...
Kb4 {[%clk 0:00:02.9]} 43. Rg5 {[%clk 0:00:08.7]} 43... Rc2+ {[%clk 0:00:03.3]}
44. Ke3 {[%clk 0:00:08.5]} 44... Rxa2 {[%clk 0:00:04]} 45. Rxh5 {[%clk
0:00:08.8]} 45... a3 {[%clk 0:00:04.9]} 46. Rxe5 {[%clk 0:00:08.7]} 46... Ra1
{[%clk 0:00:05.8]} 47. Re8 {[%clk 0:00:08.7]} 47... Re1+ {[%clk 0:00:05.6]} 0-1

[Event "*** Titled Tuesday Blitz"]
[Site "Chess.com"]
[Date "2021.03.09"]
[Round "5"]
[White "Majesth"]
[Black "allvim"]
[Result "1/2-1/2"]
[WhiteElo "2542"]
[BlackElo "2361"]
[TimeControl "180+1"]
[EndTime "10:59:37 PST"]
[Termination "Game drawn - insufficient material"]

1. d4 {[%clk 0:03:00.9]} 1... Nf6 {[%clk 0:02:58.9]} 2. Nc3 {[%clk 0:02:57.5]}
2... d5 {[%clk 0:02:58.8]} 3. Bg5 {[%clk 0:02:56.6]} 3... Nbd7 {[%clk
0:02:59.3]} 4. Qd3 {[%clk 0:02:55.7]} 4... c5 {[%clk 0:02:59]} 5. Bxf6 {[%clk
0:02:52.3]} 5... Nxf6 {[%clk 0:02:58]} 6. dxc5 {[%clk 0:02:51.5]} 6... e6 {[%clk
0:02:57.2]} 7. e4 {[%clk 0:02:50.3]} 7... dxe4 {[%clk 0:02:25.3]} 8. Qxd8+
{[%clk 0:02:51.2]} 8... Kxd8 {[%clk 0:02:25.3]} 9. O-O-O+ {[%clk 0:02:49.1]}
9... Kc7 {[%clk 0:02:15.4]} 10. Nb5+ {[%clk 0:02:35.5]} 10... Kc6 {[%clk
0:01:40.3]} 11. b4 {[%clk 0:02:35.5]} 11... a6 {[%clk 0:01:30.3]} 12. Nd6 {[%clk
0:02:23.5]} 12... Bxd6 {[%clk 0:01:28.7]} 13. Rxd6+ {[%clk 0:02:24.4]} 13... Kc7
{[%clk 0:01:29.1]} 14. Nh3 {[%clk 0:02:17.6]} 14... Rd8 {[%clk 0:01:15.5]} 15.
Ng5 {[%clk 0:02:06]} 15... Rxd6 {[%clk 0:01:05.9]} 16. cxd6+ {[%clk 0:02:06.9]}
16... Kxd6 {[%clk 0:01:06.8]} 17. Nxf7+ {[%clk 0:02:05.8]} 17... Ke7 {[%clk
0:01:07.5]} 18. Ne5 {[%clk 0:01:59.6]} 18... Bd7 {[%clk 0:01:00.8]} 19. g4
{[%clk 0:01:43.4]} 19... Rc8 {[%clk 0:00:56.3]} 20. g5 {[%clk 0:01:28.1]} 20...
Nd5 {[%clk 0:00:53]} 21. a3 {[%clk 0:01:20.4]} 21... Ba4 {[%clk 0:00:52.7]} 22.
c4 {[%clk 0:01:16.2]} 22... Kd6 {[%clk 0:00:33.5]} 23. Nf7+ {[%clk 0:01:15.7]}
23... Ke7 {[%clk 0:00:33.8]} 24. Ne5 {[%clk 0:01:14.4]} 24... Kd6 {[%clk
0:00:25.5]} 25. Ng4 {[%clk 0:01:14.4]} 25... Nf4 {[%clk 0:00:21.1]} 26. Kb2
{[%clk 0:01:07.9]} 26... Nd3+ {[%clk 0:00:17.4]} 27. Bxd3 {[%clk 0:01:02.3]}
27... exd3 {[%clk 0:00:18.3]} 28. Kc3 {[%clk 0:01:03.2]} 28... Bc2 {[%clk
0:00:16.3]} 29. Ne3 {[%clk 0:01:00.8]} 29... e5 {[%clk 0:00:11.5]} 30. Nxc2
{[%clk 0:00:57.7]} 30... dxc2 {[%clk 0:00:11.6]} 31. Rc1 {[%clk 0:00:58.1]}
31... Rf8 {[%clk 0:00:09.3]} 32. Rxc2 {[%clk 0:00:55.6]} 32... Rf3+ {[%clk
0:00:08.9]} 33. Kb2 {[%clk 0:00:56.1]} 33... b6 {[%clk 0:00:08.3]} 34. Rd2+
{[%clk 0:00:52.6]} 34... Kc6 {[%clk 0:00:08.3]} 35. a4 {[%clk 0:00:38.3]} 35...
Rf5 {[%clk 0:00:06.8]} 36. h4 {[%clk 0:00:36.7]} 36... Rf4 {[%clk 0:00:07.3]}
37. Kc3 {[%clk 0:00:36.9]} 37... Rxh4 {[%clk 0:00:07.3]} 38. b5+ {[%clk
0:00:35.8]} 38... axb5 {[%clk 0:00:07.4]} 39. axb5+ {[%clk 0:00:36.3]} 39... Kc7
{[%clk 0:00:06.7]} 40. Rd5 {[%clk 0:00:33.6]} 40... Rf4 {[%clk 0:00:05]} 41.
Rxe5 {[%clk 0:00:31.9]} 41... Rxf2 {[%clk 0:00:03.4]} 42. Re7+ {[%clk
0:00:31.3]} 42... Kd6 {[%clk 0:00:04.1]} 43. Rxg7 {[%clk 0:00:31.8]} 43... Rf3+
{[%clk 0:00:04.2]} 44. Kd4 {[%clk 0:00:30.3]} 44... Rf4+ {[%clk 0:00:04.4]} 45.
Kd3 {[%clk 0:00:30.8]} 45... Kc5 {[%clk 0:00:03.9]} 46. Rc7+ {[%clk 0:00:24.8]}
46... Kb4 {[%clk 0:00:03.9]} 47. Rc6 {[%clk 0:00:22.3]} 47... Rg4 {[%clk
0:00:04]} 48. Rxb6 {[%clk 0:00:15]} 48... Rxc4 {[%clk 0:00:04.2]} 49. Rb7 {[%clk
0:00:09.1]} 49... Rg4 {[%clk 0:00:04.3]} 50. Rxh7 {[%clk 0:00:05.2]} 50... Rxg5
{[%clk 0:00:04.7]} 51. Rb7 {[%clk 0:00:04.4]} 51... Rxb5 {[%clk 0:00:04.6]} 52.
Rxb5+ {[%clk 0:00:05.3]} 52... Kxb5 {[%clk 0:00:05.5]} 1/2-1/2